[Event "December 19 Late 2023"]
[Site "https://www.chess.com"]
[Date "2023.12.19"]
[Round "11"]
[White "Sabar Ethmane Daouda"]
[Black "Stead, Kerry"]
[Result "1-0"]
[Board "101"]
[TimeControl "180+1"]
[WhiteFideId "19600097"]
[BlackFideId "3202577"]
[WhiteElo "1950"]
[BlackElo "1997"]
[WhiteTeam "MTN"]
[BlackTeam "AUS"]
[WhiteClock "0:00:18"]
[BlackClock "0:00:44"]

1. b3 {[%clk 0:02:13]}  d5 {[%clk 0:02:58]} 2. Bb2 {[%clk 0:02:14]}  c5 {[%clk 0:02:51]} 3. e3 {[%clk 0:02:14]}  Nc6 {[%clk 0:02:45]} 4. f4 {[%clk 0:02:14]}  f6 {[%clk 0:02:44]} 5. Nf3 {[%clk 0:02:14]}  Bg4 {[%clk 0:02:41]} 6. Bb5 {[%clk 0:02:14]}  a6 {[%clk 0:02:39]} 7. Bxc6+ {[%clk 0:02:15]}  bxc6 {[%clk 0:02:40]} 8. O-O {[%clk 0:02:11]}  Qc7 {[%clk 0:02:39]} 9. h3 {[%clk 0:01:50]}  Bxf3 {[%clk 0:02:37]} 10. Qxf3 {[%clk 0:01:51]}  e6 {[%clk 0:02:37]} 11. c4 {[%clk 0:01:43]}  Bd6 {[%clk 0:02:35]} 12. Qg4 {[%clk 0:01:34]}  Qd7 {[%clk 0:02:28]} 13. Nc3 {[%clk 0:01:21]}  O-O-O {[%clk 0:02:17]} 14. Na4 {[%clk 0:01:21]}  Kb7 {[%clk 0:02:13]} 15. Ba3 {[%clk 0:01:17]}  Qe7 {[%clk 0:02:12]} 16. Rab1 {[%clk 0:01:03]}  f5 {[%clk 0:02:09]} 17. Qe2 {[%clk 0:00:51]}  Nf6 {[%clk 0:02:08]} 18. d3 {[%clk 0:00:50]}  h6 {[%clk 0:02:02]} 19. Qe1 {[%clk 0:00:49]}  g5 {[%clk 0:02:01]} 20. Qa5 {[%clk 0:00:45]}  Qc7 {[%clk 0:01:55]} 21. Nxc5+ {[%clk 0:00:43]}  Bxc5 {[%clk 0:01:53]} 22. Qxc5 {[%clk 0:00:44]}  Rd7 {[%clk 0:01:47]} 23. Bb2 {[%clk 0:00:34]}  Rf8 {[%clk 0:01:45]} 24. Qxf8 {[%clk 0:00:33]}  gxf4 {[%clk 0:01:40]} 25. Qxf6 {[%clk 0:00:28]}  fxe3 {[%clk 0:01:39]} 26. Be5 {[%clk 0:00:24]}  Qb6 {[%clk 0:00:44]} 27. d4 {[%clk 0:00:18]} 1-0

[Event "December 19 Late 2023"]
[Site "https://www.chess.com"]
[Date "2023.12.19"]
[Round "11"]
[White "Igel2023"]
[Black "Lutz, Igor Oscar"]
[Result "1/2-1/2"]
[Board "102"]
[TimeControl "180+1"]
[BlackFideId "2110806"]
[WhiteElo "2213"]
[BlackElo "2092"]
[BlackTeam "BRA"]
[WhiteClock "0:00:42"]
[BlackClock "0:00:10"]

1. e4 {[%clk 0:02:56]}  c5 {[%clk 0:02:58]} 2. Nf3 {[%clk 0:02:56]}  Nc6 {[%clk 0:02:57]} 3. d4 {[%clk 0:02:56]}  cxd4 {[%clk 0:02:56]} 4. Nxd4 {[%clk 0:02:57]}  Nf6 {[%clk 0:02:56]} 5. Nc3 {[%clk 0:02:57]}  d6 {[%clk 0:02:55]} 6. g3 {[%clk 0:02:54]}  e6 {[%clk 0:02:52]} 7. Bg2 {[%clk 0:02:54]}  Be7 {[%clk 0:02:52]} 8. O-O {[%clk 0:02:54]}  O-O {[%clk 0:02:52]} 9. h3 {[%clk 0:02:53]}  a6 {[%clk 0:02:49]} 10. Be3 {[%clk 0:02:45]}  Qc7 {[%clk 0:02:48]} 11. f4 {[%clk 0:02:38]}  e5 {[%clk 0:02:41]} 12. Nf5 {[%clk 0:02:35]}  Bxf5 {[%clk 0:02:41]} 13. exf5 {[%clk 0:02:36]}  exf4 {[%clk 0:02:34]} 14. Rxf4 {[%clk 0:02:35]}  Ne5 {[%clk 0:02:13]} 15. Nd5 {[%clk 0:02:09]}  Nxd5 {[%clk 0:02:11]} 16. Bxd5 {[%clk 0:02:10]}  Bg5 {[%clk 0:02:03]} 17. Re4 {[%clk 0:02:10]}  Bxe3+ {[%clk 0:01:53]} 18. Rxe3 {[%clk 0:02:11]}  Qc5 {[%clk 0:01:46]} 19. Qd2 {[%clk 0:02:08]}  Rac8 {[%clk 0:01:41]} 20. Rf1 {[%clk 0:01:42]}  Qxc2 {[%clk 0:01:31]} 21. Qxc2 {[%clk 0:01:40]}  Rxc2 {[%clk 0:01:31]} 22. Rf2 {[%clk 0:01:40]}  Rxf2 {[%clk 0:01:17]} 23. Kxf2 {[%clk 0:01:41]}  b5 {[%clk 0:01:14]} 24. Ra3 {[%clk 0:01:40]}  Rc8 {[%clk 0:01:04]} 25. Rxa6 {[%clk 0:01:37]}  h6 {[%clk 0:00:33]} 26. Ra8 {[%clk 0:01:36]}  Rxa8 {[%clk 0:00:32]} 27. Bxa8 {[%clk 0:01:37]}  Nd3+ {[%clk 0:00:33]} 28. Ke3 {[%clk 0:01:36]}  Nxb2 {[%clk 0:00:33]} 29. Kd4 {[%clk 0:01:36]}  Kf8 {[%clk 0:00:29]} 30. Kd5 {[%clk 0:01:31]}  Ke7 {[%clk 0:00:27]} 31. Kc6 {[%clk 0:01:31]}  b4 {[%clk 0:00:24]} 32. Kb5 {[%clk 0:01:30]}  Nd3 {[%clk 0:00:20]} 33. Be4 {[%clk 0:01:26]}  Nf2 {[%clk 0:00:18]} 34. Bg2 {[%clk 0:01:17]}  Nd3 {[%clk 0:00:16]} 35. Kc4 {[%clk 0:01:14]}  Nc1 {[%clk 0:00:16]} 36. Kxb4 {[%clk 0:01:04]}  Nxa2+ {[%clk 0:00:16]} 37. Kc4 {[%clk 0:01:02]}  Nc1 {[%clk 0:00:16]} 38. Bf1 {[%clk 0:01:00]}  Kf6 {[%clk 0:00:15]} 39. g4 {[%clk 0:00:50]}  h5 {[%clk 0:00:15]} 40. Kc3 {[%clk 0:00:48]}  Na2+ {[%clk 0:00:15]} 41. Kb3 {[%clk 0:00:46]}  Nc1+ {[%clk 0:00:15]} 42. Kb2 {[%clk 0:00:45]}  hxg4 {[%clk 0:00:12]} 43. hxg4 {[%clk 0:00:46]}  Kg5 {[%clk 0:00:12]} 44. Kxc1 {[%clk 0:00:44]}  Kxg4 {[%clk 0:00:12]} 45. Bd3 {[%clk 0:00:44]}  Kf4 {[%clk 0:00:10]} 46. Kd2 {[%clk 0:00:44]}  g6 {[%clk 0:00:11]} 47. fxg6 {[%clk 0:00:43]}  fxg6 {[%clk 0:00:12]} 48. Bxg6 {[%clk 0:00:43]}  d5 {[%clk 0:00:12]} 49. Bf7 {[%clk 0:00:43]}  Ke5 {[%clk 0:00:10]} 50. Bxd5 {[%clk 0:00:42]} 1/2-1/2